bitfinex/quotes_BTCUSD_20240712
["timestamp","ask_amount","ask_price","bid_price","bid_amount"]
[1720744390152,0.2169,57628.0,57627.0,0.15769788]
[1720744391390,0.2169,57628.0,57627.0,0.35769788]
[1720744391589,0.2179,57628.0,57627.0,0.36663435]
[1720744392137,0.017,57628.0,57627.0,0.54786305]
[1720744392339,0.017,57628.0,57627.0,0.72139205]
[1720744392586,0.017,57628.0,57627.0,0.72445558]
[1720744392787,0.01481892,57629.0,57627.0,0.72445558]
[1720744392988,0.2019,57632.0,57628.0,0.1702287]
[1720744393207,4.3856532,57640.0,57636.0,0.173501]
[1720744393208,0.2019,57637.0,57636.0,0.173501]
[1720744393403,0.2019,57637.0,57636.0,0.1702287]
[1720744394536,4.40065363,57640.0,57639.0,0.173493]
[1720744394756,4.3856532,57640.0,57639.0,0.6907087]
[1720744395494,4.3856532,57640.0,57639.0,1.0376957]
[1720744395865,4.4458532,57640.0,57639.0,1.0376957]
[1720744397028,4.3856532,57640.0,57639.0,1.0376957]
[1720744397437,4.3856532,57640.0,57639.0,1.0416957]
[1720744397967,4.3856532,57640.0,57639.0,1.7376957]
[1720744398193,4.3856532,57640.0,57639.0,1.7516957]
[1720744398411,4.3856532,57640.0,57639.0,1.7656957]
[1720744399996,4.3856532,57640.0,57639.0,0.1982287]
[1720744400198,4.3856532,57640.0,57639.0,0.3982287]
[1720744400839,4.4487532,57640.0,57639.0,0.228]
[1720744401017,4.5687532,57640.0,57639.0,0.028]
[1720744401325,0.062,57633.0,57632.0,0.2]
[1720744401554,0.062,57633.0,57627.0,0.54662]
[1720744401555,0.062,57633.0,57628.0,0.1702287]
[1720744401666,0.2019,57629.0,57628.0,0.1702287]
[1720744403077,0.2019,57629.0,57627.0,0.63173435]
[1720744403078,0.2677,57629.0,57627.0,0.54662]
[1720744404147,0.2677,57629.0,57627.0,0.06952]
[1720744404351,0.2677,57629.0,57621.0,0.08511435]
[1720744404352,0.3877,57629.0,57621.0,0.08511435]
[1720744404549,0.1878,57629.0,57628.0,0.028]
[1720744404770,0.1878,57629.0,57628.0,0.014]
[1720744404771,0.3887,57629.0,57628.0,0.014]
[1720744405189,0.1865,57625.0,57621.0,0.08511435]
[1720744405416,0.2019,57623.0,57622.0,0.069525]
[1720744405526,0.2019,57623.0,57621.0,0.08511435]
[1720744405527,0.3219,57623.0,57621.0,0.08511435]
[1720744405737,0.12,57621.0,57615.0,0.08511435]
[1720744405948,0.2019,57616.0,57615.0,0.25534305]
[1720744406567,0.2019,57616.0,57615.0,0.32487205]
[1720744408101,0.1862,57620.0,57615.0,0.32487205]
[1720744408102,0.0662,57620.0,57615.0,0.32487205]
[1720744408283,0.2681,57620.0,57616.0,0.00306353]
[1720744408510,0.2681,57620.0,57616.0,0.17329223]
[1720744409320,0.2681,57620.0,57616.0,0.1702287]
[1720744409519,0.2691,57620.0,57617.0,0.00306353]
[1720744409752,0.2701,57620.0,57617.0,0.17329223]
[1720744410154,0.2701,57620.0,57617.0,0.1702287]
[1720744410290,0.2701,57620.0,57618.0,0.00306353]
[1720744411021,0.2691,57620.0,57618.0,0.00306353]
[1720744411252,0.2681,57620.0,57618.0,0.00306353]
[1720744411408,0.2691,57620.0,57618.0,0.00306353]
[1720744411608,0.2701,57620.0,57618.0,0.00306353]
[1720744411814,0.2691,57620.0,57617.0,0.1702287]
[1720744412069,0.2691,57620.0,57618.0,0.00306353]
[1720744412277,0.2701,57620.0,57618.0,0.00406353]
[1720744412687,0.2691,57620.0,57618.0,0.001]
[1720744413109,0.2701,57620.0,57618.0,0.009]
[1720744413301,0.2701,57620.0,57619.0,0.00249754]
[1720744413717,0.2701,57620.0,57618.0,0.009]
[1720744414127,0.2701,57620.0,57618.0,0.01164662]
[1720744414485,0.2691,57620.0,57618.0,0.00364662]
[1720744414895,0.2701,57620.0,57619.0,0.008]
[1720744415127,0.2691,57620.0,57619.0,0.008]
[1720744415343,0.12,57619.0,57618.0,0.00264662]
[1720744415779,0.12121103,57620.0,57618.0,0.01064662]
[1720744415986,0.12121103,57620.0,57618.0,0.008]
[1720744416194,5.12121103,57620.0,57619.0,0.00306353]
[1720744416619,5.12021103,57620.0,57617.0,0.1702287]
[1720744417076,0.001,57619.0,57618.0,0.008]
[1720744417942,0.122,57619.0,57618.0,0.017]
[1720744418416,0.121,57619.0,57618.0,0.009]
[1720744418896,0.001,57619.0,57618.0,0.009]
[1720744419355,0.001,57619.0,57618.0,0.017]
[1720744419754,4.68067295,57620.0,57618.0,0.017]
[1720744421236,4.68067295,57620.0,57618.0,0.008]
[1720744421696,4.68167295,57620.0,57618.0,0.008]
[1720744422187,4.68167295,57620.0,57618.0,0.014]
[1720744422188,4.68267295,57620.0,57618.0,0.014]
[1720744424257,4.68267295,57620.0,57618.0,0.014]
[1720744425426,0.12,57619.0,57618.0,0.014]
[1720744425673,0.12,57616.0,57613.0,0.069537]
[1720744425916,0.2019,57614.0,57613.0,0.069537]
[1720744426847,0.3219,57614.0,57613.0,0.069537]
[1720744427835,0.2019,57614.0,57608.0,0.28511435]
[1720744428091,0.12,57614.0,57609.0,0.069539]
[1720744428305,0.2019,57610.0,57609.0,0.069539]
[1720744429317,0.2019,57610.0,57609.0,0.075539]
[1720744429431,0.2019,57610.0,57609.0,0.079539]
[1720744430000,0.2019,57610.0,57609.0,0.073539]
[1720744430415,0.2019,57610.0,57609.0,0.069539]
[1720744431340,0.2019,57610.0,57609.0,0.082539]
[1720744431341,0.2029,57610.0,57609.0,0.082539]
[1720744431759,0.2029,57610.0,57609.0,0.08560253]
[1720744432588,0.2029,57610.0,57609.0,0.082539]
[1720744432788,0.2039,57610.0,57609.0,0.091539]
[1720744433020,0.2029,57610.0,57609.0,0.082539]
[1720744433397,0.2039,57610.0,57609.0,0.091539]
[1720744437055,0.21867329,57610.0,57609.0,0.091539]
[1720744437690,0.33867329,57610.0,57609.0,0.091539]
[1720744438099,0.33867329,57610.0,57609.0,0.022]
[1720744438310,0.21867329,57610.0,57609.0,0.022]
[1720744438952,0.33767329,57610.0,57609.0,0.009]
[1720744439544,0.33867329,57610.0,57609.0,0.022]
[1720744439878,0.33767329,57610.0,57609.0,0.013]
[1720744440282,0.21867329,57610.0,57609.0,0.10611435]
[1720744447858,0.33867329,57610.0,57609.0,0.021]
[1720744448058,0.21867329,57610.0,57609.0,0.021]
[1720744448451,0.33867329,57610.0,57609.0,0.021]
[1720744448688,0.21867329,57610.0,57609.0,0.021]
[1720744448891,0.21867329,57610.0,57609.0,0.10611435]
[1720744452368,0.06,57617.0,57609.0,0.10611435]
[1720744452607,0.2019,57611.0,57610.0,0.1426]
[1720744452782,0.2019,57611.0,57610.0,0.14566353]
[1720744453186,4.69534918,57620.0,57613.0,0.05736049]
[1720744453390,0.2019,57618.0,57617.0,0.00306353]
[1720744456038,0.2019,57618.0,57617.0,0.00406353]
[1720744456256,0.2019,57618.0,57617.0,0.12482402]
[1720744456469,0.2019,57618.0,57617.0,0.12176049]
[1720744456673,0.2019,57618.0,57617.0,0.0684]
[1720744456881,0.2019,57618.0,57617.0,0.07146353]
[1720744457965,0.2019,57618.0,57617.0,0.20742402]
[1720744458215,0.2019,57618.0,57617.0,0.20436049]
[1720744458450,0.2019,57618.0,57617.0,0.147]
[1720744458689,0.2019,57618.0,57617.0,0.146]
[1720744458929,0.2019,57618.0,57613.0,0.00306353]
[1720744459142,0.2019,57614.0,57608.0,0.14591435]
[1720744459361,0.2019,57614.0,57609.0,0.1702287]
[1720744460112,0.2019,57614.0,57610.0,0.05736049]
[1720744461132,0.2619,57614.0,57610.0,0.2]
[1720744461332,0.2019,57614.0,57611.0,0.00306353]
[1720744462342,0.2029,57614.0,57611.0,0.00306353]
[1720744462736,0.06,57613.0,57611.0,0.00306353]
[1720744463155,0.2639,57614.0,57611.0,0.024]
[1720744463364,0.06,57613.0,57612.0,0.00306353]
[1720744463780,0.2629,57614.0,57612.0,0.00306353]
[1720744463982,0.06,57613.0,57612.0,0.00306353]
[1720744464242,0.2029,57614.0,57611.0,0.01]
[1720744464243,0.06263951,57612.0,57611.0,0.01]
[1720744464455,0.06263951,57612.0,57607.0,0.069544]
[1720744464456,0.06,57608.0,57607.0,0.069544]
[1720744464697,0.06263951,57608.0,57607.0,0.069544]
[1720744464928,0.06,57608.0,57607.0,0.069544]
[1720744465168,0.06,57608.0,57604.0,0.2]
[1720744465394,0.00263951,57610.0,57604.0,0.2]
[1720744465395,0.06,57610.0,57604.0,0.2]
[1720744465644,0.06,57610.0,57605.0,0.06]
[1720744465856,0.06,57609.0,57605.0,0.06]
[1720744466085,0.2029,57608.0,57607.0,0.008]
[1720744466490,0.2019,57608.0,57605.0,0.06]
[1720744466890,0.2019,57608.0,57605.0,0.065]
[1720744467562,0.2019,57608.0,57605.0,0.072]
[1720744468183,0.06,57607.0,57605.0,0.072]
[1720744468437,0.06,57606.0,57605.0,0.072]
[1720744468636,0.20453951,57608.0,57605.0,0.072]
[1720744468637,0.2619,57608.0,57605.0,0.067]
[1720744468981,0.06,57607.0,57605.0,0.067]
[1720744469191,0.06,57606.0,57605.0,0.067]
[1720744469402,0.06,57607.0,57605.0,0.067]
[1720744469632,0.06263951,57606.0,57605.0,0.007]
[1720744469864,0.06,57606.0,57603.0,0.2]
[1720744470064,0.06,57607.0,57603.0,0.269549]
[1720744470478,0.001,57606.0,57603.0,0.269549]
[1720744470908,0.001,57606.0,57605.0,0.01]
[1720744471322,0.001,57606.0,57603.0,0.269549]
[1720744471724,0.002,57606.0,57603.0,0.281549]
[1720744471931,0.001,57606.0,57603.0,0.281549]
[1720744472141,0.061,57606.0,57603.0,0.081549]
[1720744472350,0.06,57604.0,57603.0,0.081549]
[1720744473332,0.06,57604.0,57602.0,0.08511435]
[1720744473333,0.06263951,57602.0,57601.0,0.000913]
[1720744473533,0.26453951,57602.0,57601.0,0.000913]
[1720744474553,0.26453951,57602.0,57601.0,0.011913]
[1720744474760,0.26553951,57602.0,57601.0,0.011913]
[1720744475399,0.29271355,57602.0,57601.0,0.011913]
[1720744475603,0.26553951,57602.0,57601.0,0.011913]
[1720744475897,0.29271482,57602.0,57601.0,0.011913]
[1720744476034,0.26553951,57602.0,57601.0,0.011913]
[1720744476646,0.29271558,57602.0,57601.0,0.011913]
[1720744476908,0.26553951,57602.0,57601.0,0.01150696]
[1720744477092,0.26453951,57602.0,57601.0,0.00050696]
[1720744477269,0.26553951,57602.0,57601.0,0.00050696]
[1720744477470,0.26653951,57602.0,57601.0,0.00750696]
[1720744478058,0.06,57593.0,57589.0,6.971e-05]
[1720744478280,0.00263951,57595.0,57591.0,0.51068611]
[1720744478281,0.06,57592.0,57591.0,0.51068611]
[1720744478491,0.06,57592.0,57589.0,6.971e-05]
[1720744478769,0.06,57590.0,57589.0,6.971e-05]
[1720744479354,0.06,57593.0,57589.0,6.971e-05]
[1720744479556,0.06,57593.0,57592.0,0.16631435]
[1720744480112,0.06,57593.0,57589.0,6.971e-05]
[1720744480113,0.3302287,57593.0,57589.0,6.971e-05]
[1720744480324,0.06263951,57590.0,57589.0,1e-08]
[1720744480645,0.06263951,57590.0,57582.0,0.0798]
[1720744480646,0.06,57584.0,57582.0,0.0798]
[1720744480860,0.2619,57584.0,57582.0,0.0798]
[1720744481646,0.2019,57584.0,57582.0,0.0798]
[1720744481875,0.06,57583.0,57582.0,0.0798]
[1720744482229,0.06,57583.0,57581.0,0.009108]
[1720744482230,0.06263951,57582.0,57581.0,0.009108]
[1720744483951,0.06,57582.0,57581.0,0.009108]
[1720744484152,0.065,57582.0,57581.0,0.009108]
[1720744484968,0.06,57582.0,57581.0,0.009108]
[1720744485163,0.06463951,57582.0,57581.0,0.009108]
[1720744485574,0.062,57582.0,57581.0,0.009108]
[1720744486033,0.06463951,57582.0,57581.0,0.009108]
[1720744486547,0.06263951,57582.0,57581.0,0.009108]
[1720744486748,0.06263951,57582.0,57581.0,0.010108]
[1720744486962,0.547293,57589.0,57581.0,0.010108]
[1720744487106,0.2039,57582.0,57581.0,0.010108]
[1720744487919,0.2019,57582.0,57581.0,0.010108]
[1720744488444,0.2019,57582.0,57581.0,0.009108]
[1720744488646,0.2019,57582.0,57581.0,0.010108]
[1720744488855,0.2039,57582.0,57581.0,0.010108]
[1720744489257,0.2039,57582.0,57581.0,0.009108]
[1720744489672,0.2039,57582.0,57581.0,0.010108]
[1720744492328,0.2269,57582.0,57581.0,0.010108]
[1720744495051,0.24497758,57582.0,57581.0,0.010108]
[1720744495429,0.22197758,57582.0,57581.0,0.010108]
[1720744496887,0.22197758,57582.0,57581.0,0.153808]
[1720744506372,0.22197758,57582.0,57581.0,0.010108]
[1720744506751,0.10087758,57582.0,57581.0,0.010108]
[1720744507692,0.10087758,57582.0,57580.0,0.009108]
[1720744507819,0.00306353,57581.0,57580.0,0.009108]
[1720744508021,0.10306353,57581.0,57580.0,0.009108]
[1720744508428,0.12606353,57581.0,57580.0,0.009108]
[1720744508634,0.32806353,57581.0,57580.0,0.009108]
[1720744508850,0.325,57581.0,57580.0,0.009108]
[1720744509049,0.02007758,57582.0,57580.0,0.011108]
[1720744509230,0.01807758,57582.0,57581.0,0.7771647]
[1720744509433,0.00083,57587.0,57586.0,0.12]
[1720744509652,0.01946469,57587.0,57586.0,0.433253]
[1720744509864,0.00083,57587.0,57586.0,0.34471435]
[1720744510072,0.00083,57587.0,57586.0,0.22471435]
[1720744511344,0.00083,57587.0,57586.0,0.34471435]
[1720744512449,0.00083,57587.0,57586.0,1.03590205]
[1720744512659,0.1,57608.0,57592.0,0.0773]
[1720744512660,0.202,57608.0,57592.0,0.0773]
[1720744512866,0.00609353,57618.0,57606.0,0.2596]
[1720744512867,0.202,57613.0,57606.0,0.2596]
[1720744513069,0.202,57613.0,57606.0,0.1396]
[1720744513892,0.014,57608.0,57606.0,0.1396]
[1720744514095,0.014,57608.0,57606.0,0.2596]
[1720744514450,0.202,57613.0,57606.0,0.2596]
[1720744514653,0.216,57613.0,57606.0,0.2596]
[1720744514897,0.216,57613.0,57606.0,0.1396]
[1720744515040,0.202,57608.0,57606.0,0.1396]
[1720744515241,0.202,57608.0,57595.0,0.39882717]
[1720744515242,0.00306353,57607.0,57602.0,0.0609]
[1720744515469,0.00306353,57607.0,57606.0,0.08511435]
[1720744515832,0.202,57608.0,57606.0,0.08511435]
[1720744516027,0.208,57608.0,57606.0,0.08511435]
[1720744516228,0.006,57608.0,57607.0,0.258]
[1720744516431,0.006,57608.0,57607.0,0.138]
[1720744516667,0.208,57608.0,57607.0,0.138]
[1720744517018,0.208,57608.0,57600.0,0.08511435]
[1720744517019,0.00306353,57607.0,57600.0,0.08511435]
[1720744517356,0.00306353,57607.0,57606.0,0.001]
[1720744517611,0.212,57608.0,57607.0,0.1386]
[1720744517815,0.21992613,57608.0,57607.0,0.1386]
[1720744518214,0.22992613,57608.0,57607.0,0.1396]
[1720744518417,0.22992613,57608.0,57607.0,0.1386]
[1720744518418,0.21992613,57608.0,57607.0,0.1386]
[1720744518689,0.21992613,57608.0,57607.0,0.2586]
[1720744518840,0.21992613,57608.0,57607.0,0.1386]
[1720744520590,0.1,57618.0,57607.0,0.1426]
[1720744520790,0.005,57608.0,57607.0,0.2626]
[1720744520995,0.202,57614.0,57612.0,0.12]
[1720744521196,0.202,57619.0,57614.0,0.00285404]
[1720744521769,0.202,57619.0,57613.0,0.1469]
[1720744521948,0.202,57619.0,57613.0,0.2669]
[1720744522151,0.202,57619.0,57613.0,0.1469]
[1720744522978,0.202,57619.0,57614.0,0.00306353]
[1720744523381,0.202,57619.0,57613.0,0.1469]
[1720744523598,0.202,57619.0,57613.0,0.1479]
[1720744524144,0.202,57619.0,57613.0,0.1469]
[1720744524350,0.202,57619.0,57614.0,0.00306353]
[1720744524480,0.215,57619.0,57614.0,0.00406353]
[1720744524681,0.202,57619.0,57614.0,0.00306353]
[1720744524879,0.202,57619.0,57617.0,0.00306353]
[1720744525083,0.202,57619.0,57618.0,0.0656]
[1720744525084,0.215,57619.0,57618.0,0.0656]
[1720744525290,0.013,57619.0,57618.0,0.441156]
[1720744525515,4.69861488,57620.0,57619.0,1.28826]
[1720744525718,4.68067295,57620.0,57619.0,1.8055957]
[1720744525919,4.68067295,57620.0,57619.0,2.1527027]
[1720744526500,4.68067295,57620.0,57619.0,2.2127027]
[1720744526722,4.59737295,57620.0,57619.0,2.2127027]
[1720744526924,4.59837295,57620.0,57619.0,2.2267027]
[1720744527129,4.59837295,57620.0,57619.0,2.8738097]
[1720744527130,4.53177295,57620.0,57619.0,2.8738097]
[1720744527586,4.53177295,57620.0,57619.0,2.5267027]
[1720744527793,4.53177295,57620.0,57619.0,2.3267027]
[1720744528021,4.53077295,57620.0,57619.0,2.3127027]
[1720744528672,4.53077295,57620.0,57619.0,2.4527027]
[1720744528885,4.53077295,57620.0,57619.0,1.7527027]
[1720744529331,4.53077295,57620.0,57619.0,2.4527027]
[1720744529709,4.53077295,57620.0,57619.0,2.1055957]
[1720744529943,4.53077295,57620.0,57619.0,2.4527027]
[1720744530348,4.53277295,57620.0,57619.0,1.7777027]
[1720744530526,4.53277295,57620.0,57619.0,2.4777027]
[1720744531361,4.53277295,57620.0,57619.0,1.3363817]
[1720744531579,4.53277295,57620.0,57619.0,0.6363817]
[1720744531771,4.53277295,57620.0,57619.0,0.8363817]
[1720744531977,4.54014354,57620.0,57619.0,0.8363817]
[1720744532322,4.54014354,57620.0,57619.0,1.1834887]
[1720744532520,4.54014354,57620.0,57619.0,1.5305957]
[1720744532722,4.54014354,57620.0,57619.0,1.9377027]
[1720744532930,4.53277295,57620.0,57619.0,1.9377027]
[1720744533129,4.54015529,57620.0,57619.0,1.9377027]
[1720744533826,4.25387383,57620.0,57619.0,1.9377027]
[1720744535266,4.10397383,57620.0,57619.0,2.4848097]
[1720744535400,3.87077383,57620.0,57619.0,3.39453564]
[1720744535626,3.50627383,57620.0,57619.0,4.14280071]
[1720744535834,3.50627383,57620.0,57619.0,4.30348339]
[1720744535835,3.42364929,57620.0,57619.0,4.30348339]
[1720744536071,3.4272963,57620.0,57619.0,4.84972989]
[1720744536490,3.4262963,57620.0,57619.0,4.79020071]
[1720744536700,3.4252963,57620.0,57619.0,5.13470071]
[1720744536911,3.4262963,57620.0,57619.0,5.14270071]
[1720744537111,3.4262963,57620.0,57619.0,5.15670071]
[1720744537322,3.41526695,57620.0,57619.0,4.43948671]
[1720744537564,3.42629283,57620.0,57619.0,4.43948671]
[1720744537768,3.42629283,57620.0,57619.0,4.43946464]
[1720744537966,3.42629283,57620.0,57619.0,4.81396464]
[1720744538215,3.41526695,57620.0,57619.0,4.8747627]
[1720744538416,3.41526695,57620.0,57619.0,4.16535764]
[1720744538626,3.42630465,57620.0,57619.0,2.38048442]
[1720744538826,3.41526695,57620.0,57619.0,2.98048442]
[1720744539051,3.42630465,57620.0,57619.0,2.8016027]
[1720744539233,3.42630465,57620.0,57619.0,2.94575418]
[1720744539553,3.41526695,57620.0,57619.0,2.94575418]
[1720744539876,3.42619605,57620.0,57619.0,2.94575418]
[1720744539989,3.42619605,57620.0,57619.0,2.47125418]
[1720744540451,3.41426695,57620.0,57619.0,2.46325418]
[1720744540671,3.41426695,57620.0,57619.0,1.66904018]
[1720744540861,3.42619405,57620.0,57619.0,1.5388887]
[1720744541058,3.41526695,57620.0,57619.0,1.61000305]
[1720744541297,3.41526695,57620.0,57619.0,1.09600305]
[1720744541298,3.42530369,57620.0,57619.0,1.09600305]
[1720744541498,3.50380369,57620.0,57619.0,0.3042287]
[1720744541694,3.50480369,57620.0,57619.0,0.348]
[1720744541896,3.50480369,57620.0,57619.0,0.334]
[1720744542309,3.50480369,57620.0,57619.0,0.348]
[1720744542514,3.50380369,57620.0,57619.0,0.41911435]
[1720744542717,3.50380369,57620.0,57619.0,0.21911435]
[1720744543006,3.50380369,57620.0,57619.0,0.41911435]
[1720744543879,3.50380369,57620.0,57619.0,0.40511435]
[1720744544089,3.50480369,57620.0,57619.0,0.41911435]
[1720744544288,3.50480369,57620.0,57619.0,0.43311435]
[1720744544494,3.50380369,57620.0,57619.0,0.91911435]
[1720744544704,3.50480369,57620.0,57619.0,0.23311435]
[1720744544903,3.50480369,57620.0,57619.0,0.93311435]
[1720744545528,3.50480369,57620.0,57619.0,0.23311435]
[1720744545767,3.50480369,57620.0,57619.0,0.43311435]
[1720744546421,3.50480369,57620.0,57619.0,1.10666735]
[1720744548355,3.49507161,57620.0,57619.0,1.10666735]
[1720744548564,3.49507161,57620.0,57619.0,1.97111005]
[1720744548756,3.41657161,57620.0,57619.0,2.11528601]
[1720744549203,3.41657161,57620.0,57619.0,1.76817901]
[1720744549415,3.41657161,57620.0,57619.0,0.92107201]
[1720744549636,3.41657161,57620.0,57619.0,0.37217596]
[1720744549845,3.55617161,57620.0,57619.0,0.028]
[1720744550249,3.26164373,57620.0,57619.0,0.028]
[1720744551090,3.26164373,57620.0,57619.0,0.009]
[1720744551347,3.26164373,57620.0,57619.0,0.01]
[1720744551971,3.26164373,57620.0,57619.0,0.129]
[1720744552200,3.26064373,57620.0,57619.0,0.21111435]
[1720744552448,3.26064373,57620.0,57619.0,0.38466735]
[1720744552699,3.26064373,57620.0,57619.0,0.52884474]
[1720744552896,3.26064373,57620.0,57619.0,0.52984474]
[1720744552897,3.26664373,57620.0,57619.0,0.52984474]
[1720744553096,3.26664373,57620.0,57619.0,0.53290827]
[1720744553097,3.25560699,57620.0,57619.0,0.53290827]
[1720744553300,3.26028137,57620.0,57619.0,0.35835801]
[1720744553509,3.26028137,57620.0,57619.0,0.09417788]
[1720744553737,3.26028137,57620.0,57619.0,0.079527]
[1720744554630,3.28323312,57620.0,57619.0,0.079527]
[1720744554870,3.28323312,57620.0,57619.0,0.073527]
[1720744555285,3.28323312,57620.0,57619.0,0.01]
[1720744555692,3.28323312,57620.0,57619.0,0.004]
[1720744556093,0.1465,57618.0,57612.0,0.08511435]
[1720744556293,0.1465,57616.0,57615.0,0.069537]
[1720744556494,1e-08,57616.0,57615.0,0.069537]
[1720744556709,1e-08,57616.0,57609.0,0.05139206]
[1720744556902,1e-08,57616.0,57612.0,0.069539]
[1720744556903,0.01068781,57616.0,57612.0,0.069539]
[1720744557234,0.01068781,57616.0,57613.0,0.08511435]
[1720744557696,0.01068781,57616.0,57612.0,0.069539]
[1720744557697,0.01168781,57616.0,57615.0,0.007]
[1720744559145,0.01168781,57616.0,57615.0,0.8179247]
[1720744559479,0.00100001,57616.0,57615.0,0.90324885]
[1720744559813,1e-08,57616.0,57615.0,1.2812686]
[1720744560221,1e-08,57616.0,57615.0,1.2762686]
[1720744560430,1e-08,57616.0,57615.0,1.54613898]
[1720744560629,1e-08,57616.0,57615.0,1.64920673]
[1720744560930,0.00100001,57616.0,57615.0,1.1660557]
[1720744561158,0.01427807,57616.0,57615.0,1.65413737]
[1720744561531,0.00100001,57616.0,57615.0,1.89523762]
[1720744561730,0.00100001,57616.0,57615.0,2.52409629]
[1720744561960,0.00100001,57616.0,57615.0,2.52410067]
[1720744562166,0.00100001,57616.0,57615.0,2.25106095]
[1720744562360,0.00100001,57616.0,57615.0,2.74236991]
[1720744562583,0.00100001,57616.0,57615.0,2.38723891]
[1720744562887,1e-08,57616.0,57615.0,2.51611938]
[1720744563101,0.00100001,57616.0,57615.0,2.41021612]
[1720744563225,0.00100001,57616.0,57615.0,2.60390099]
[1720744563429,0.00100001,57616.0,57615.0,3.01103199]
[1720744563623,0.00100001,57616.0,57615.0,2.94823026]
[1720744564138,3.11000699,57620.0,57619.0,0.867767]
[1720744564325,3.11000699,57620.0,57619.0,1.61120295]
[1720744564529,3.11000699,57620.0,57619.0,1.95830995]
[1720744564730,3.11000699,57620.0,57619.0,2.07830995]
[1720744564878,3.11000699,57620.0,57619.0,2.77830995]
[1720744565079,3.11000699,57620.0,57619.0,2.67519112]
[1720744565498,3.11000699,57620.0,57619.0,2.77830995]
[1720744565697,3.11000699,57620.0,57619.0,2.75254437]
[1720744565903,3.11000699,57620.0,57619.0,2.67519112]
[1720744566391,3.11000699,57620.0,57619.0,2.75254396]
[1720744566603,3.11000699,57620.0,57619.0,2.30021705]
[1720744566757,3.11100699,57620.0,57619.0,2.30821705]
[1720744566970,3.1242934,57620.0,57619.0,2.30821705]
[1720744567368,3.1242934,57620.0,57619.0,2.38556989]
[1720744567576,3.1242934,57620.0,57619.0,2.35979859]
[1720744567922,3.1242934,57620.0,57619.0,2.30821705]
[1720744568347,3.1242934,57620.0,57619.0,2.35979859]
[1720744568547,3.1242934,57620.0,57619.0,2.30821705]
[1720744570509,3.1242934,57620.0,57619.0,2.85922405]
[1720744570710,3.1251234,57620.0,57619.0,3.59155857]
[1720744570961,3.1251234,57620.0,57619.0,4.23543538]
[1720744571174,3.1251234,57620.0,57619.0,4.05843538]
[1720744571175,3.11183699,57620.0,57619.0,4.05843538]
[1720744571431,3.12251422,57620.0,57619.0,2.91597138]
[1720744571600,3.12151422,57620.0,57619.0,3.36114118]
[1720744571836,3.12151422,57620.0,57619.0,3.15793636]
[1720744572037,3.12151422,57620.0,57619.0,3.25793636]
[1720744572558,3.12151422,57620.0,57619.0,3.36114932]
[1720744572699,3.12151422,57620.0,57619.0,3.25793636]
[1720744572905,3.12151422,57620.0,57619.0,2.72886705]
[1720744573112,3.12151422,57620.0,57619.0,3.41489671]
[1720744573319,3.11083699,57620.0,57619.0,2.75686705]
[1720744573517,3.12151422,57620.0,57619.0,3.41489477]
[1720744573774,3.12151422,57620.0,57619.0,3.37509278]
[1720744574004,3.12151422,57620.0,57619.0,3.34929904]
[1720744574183,3.12151422,57620.0,57619.0,2.887005]
[1720744574334,3.12151422,57620.0,57619.0,2.93861264]
[1720744574535,3.12151422,57620.0,57619.0,3.16442139]
[1720744574737,3.12151422,57620.0,57619.0,3.69644145]
[1720744574938,3.12151422,57620.0,57619.0,3.71044145]
[1720744575495,3.12151422,57620.0,57619.0,2.97842139]
[1720744575685,3.12151422,57620.0,57619.0,3.36333644]
[1720744575891,3.12151422,57620.0,57619.0,2.8410172]
[1720744576099,3.12151422,57620.0,57619.0,2.41821705]
[1720744576455,3.11083699,57620.0,57619.0,1.75296705]
[1720744576650,3.11083699,57620.0,57619.0,2.45296705]
[1720744576851,3.12151422,57620.0,57619.0,2.45296705]
[1720744577820,3.12151422,57620.0,57619.0,1.75296705]
[1720744578017,3.12151422,57620.0,57619.0,2.45296705]
[1720744579445,3.12151422,57620.0,57619.0,2.2331027]
[1720744579662,3.12151422,57620.0,57619.0,1.8859957]
[1720744579862,3.12151422,57620.0,57619.0,1.8719957]
[1720744580062,3.12151422,57620.0,57619.0,1.8579957]
[1720744580290,3.12151422,57620.0,57619.0,1.8719957]
[1720744580494,3.12151422,57620.0,57619.0,1.8859957]
[1720744580687,3.12151422,57620.0,57619.0,1.8719957]
[1720744581475,3.12151422,57620.0,57619.0,1.5388887]
[1720744581684,3.12151422,57620.0,57619.0,1.0182287]
[1720744581907,3.20071422,57620.0,57619.0,0.3982287]
[1720744582111,3.26581422,57620.0,57619.0,0.028]
[1720744582316,3.26581422,57620.0,57619.0,0.148]
[1720744582531,3.26581422,57620.0,57619.0,0.028]
[1720744582925,3.26581422,57620.0,57619.0,0.014]
[1720744583240,3.12151422,57620.0,57619.0,0.014]
[1720744583442,3.27089659,57620.0,57619.0,0.014]
[1720744583648,3.27089659,57620.0,57619.0,0.024]
[1720744583855,3.27089659,57620.0,57619.0,0.01]
[1720744583856,3.47289659,57620.0,57619.0,0.01]
[1720744584062,0.1401,57619.0,57615.0,0.000913]
[1720744584272,3.32619659,57620.0,57615.0,0.000913]
[1720744584526,0.1444,57616.0,57615.0,0.000913]
[1720744584727,0.1444,57616.0,57615.0,0.120913]
[1720744584937,0.15769891,57616.0,57615.0,0.120913]
[1720744585774,0.15769891,57616.0,57615.0,0.2911417]
[1720744585977,0.15769891,57616.0,57615.0,0.8118377]
[1720744586183,0.15769891,57616.0,57615.0,0.000913]
[1720744587017,0.15769891,57616.0,57615.0,0.008913]
[1720744587633,0.15769891,57616.0,57615.0,0.019913]
[1720744588265,0.15769891,57616.0,57615.0,0.139913]
[1720744588601,0.15769891,57616.0,57615.0,0.019913]
[1720744589417,0.15769891,57616.0,57615.0,0.139913]
[1720744589629,0.15769891,57616.0,57615.0,0.019913]
[1720744594807,0.0663,57613.0,57608.0,0.069544]
[1720744595010,0.202,57609.0,57608.0,0.069544]
[1720744595208,0.1461,57608.0,57601.0,0.12]
[1720744595573,0.1461,57608.0,57605.0,0.12]
[1720744595775,0.01329284,57607.0,57605.0,0.12]
[1720744596431,0.01329284,57607.0,57606.0,0.20511435]